[Event "*** Titled Tuesday Blitz"]
[Site "Chess.com"]
[Date "2020.05.12"]
[Round "6"]
[White "SCIM"]
[Black "Piotrek1979"]
[Result "0-1"]
[WhiteElo "2539"]
[BlackElo "2361"]
[TimeControl "180+1"]
[EndTime "11:06:01 PDT"]
[Termination "Piotrek1979 won on time"]

1. d4 {[%clk 0:03:00.9]} 1... Nf6 {[%clk 0:02:58.2]} 2. c4 {[%clk 0:03:01]} 2...
c5 {[%clk 0:02:57.2]} 3. d5 {[%clk 0:03:00.4]} 3... e5 {[%clk 0:02:55.8]} 4. Nc3
{[%clk 0:02:58.4]} 4... d6 {[%clk 0:02:56]} 5. e4 {[%clk 0:02:57.6]} 5... Be7
{[%clk 0:02:56.7]} 6. Nf3 {[%clk 0:02:56.6]} 6... Nbd7 {[%clk 0:02:56.4]} 7. g3
{[%clk 0:02:56.5]} 7... a6 {[%clk 0:02:52.7]} 8. Bg2 {[%clk 0:02:56.6]} 8... Rb8
{[%clk 0:02:52]} 9. a4 {[%clk 0:02:53.1]} 9... O-O {[%clk 0:02:49.9]} 10. O-O
{[%clk 0:02:53.1]} 10... Ne8 {[%clk 0:02:49]} 11. Be3 {[%clk 0:02:38.2]} 11...
Nc7 {[%clk 0:02:47.5]} 12. Qd2 {[%clk 0:02:35.9]} 12... b5 {[%clk 0:02:44.3]}
13. axb5 {[%clk 0:02:34]} 13... axb5 {[%clk 0:02:45.2]} 14. cxb5 {[%clk
0:02:26.9]} 14... Nxb5 {[%clk 0:02:43.1]} 15. Nxb5 {[%clk 0:02:27.1]} 15... Rxb5
{[%clk 0:02:43.4]} 16. Rfb1 {[%clk 0:02:27.6]} 16... Qb6 {[%clk 0:02:36.4]} 17.
Bf1 {[%clk 0:02:13.7]} 17... Rb4 {[%clk 0:02:33.7]} 18. Bd3 {[%clk 0:02:08.8]}
18... f5 {[%clk 0:02:26.9]} 19. Qc2 {[%clk 0:01:24]} 19... fxe4 {[%clk
0:02:16.6]} 20. Bxe4 {[%clk 0:01:20.9]} 20... Nf6 {[%clk 0:01:51.9]} 21. Bf5
{[%clk 0:01:16.3]} 21... Nxd5 {[%clk 0:01:31.6]} 22. Bxh7+ {[%clk 0:01:13.4]}
22... Kh8 {[%clk 0:01:31.6]} 23. Be4 {[%clk 0:01:03.1]} 23... Nxe3 {[%clk
0:01:28.6]} 24. fxe3 {[%clk 0:01:04]} 24... Rxe4 {[%clk 0:01:26.6]} 25. Qxe4
{[%clk 0:01:00.9]} 25... Bb7 {[%clk 0:01:26.7]} 26. Qg6 {[%clk 0:00:48.7]} 26...
Bxf3 {[%clk 0:01:15.1]} 27. Qe6 {[%clk 0:00:22.5]} 27... c4 {[%clk 0:00:51.5]}
28. Qh3+ {[%clk 0:00:18.7]} 28... Kg8 {[%clk 0:00:51.1]} 29. Qe6+ {[%clk
0:00:17.9]} 29... Kh7 {[%clk 0:00:51.3]} 30. Qh3+ {[%clk 0:00:16.6]} 30... Kg6
{[%clk 0:00:51.5]} 31. Re1 {[%clk 0:00:13.1]} 31... Bg5 {[%clk 0:00:39.6]} 32.
Ra3 {[%clk 0:00:08.9]} 32... Qxb2 {[%clk 0:00:28.9]} 33. Ra6 {[%clk 0:00:03]}
33... Qd2 {[%clk 0:00:23]} 0-1

[Event "*** Titled Tuesday Blitz"]
[Site "Chess.com"]
[Date "2020.05.12"]
[Round "6"]
[White "Onischuk_V"]
[Black "Hikaru"]
[Result "0-1"]
[WhiteElo "2821"]
[BlackElo "3242"]
[TimeControl "180+1"]
[EndTime "11:06:02 PDT"]
[Termination "Hikaru won by resignation"]

1. e4 {[%clk 0:02:59.4]} 1... c6 {[%clk 0:02:57.5]} 2. d4 {[%clk 0:02:57]} 2...
d5 {[%clk 0:02:58.4]} 3. e5 {[%clk 0:02:53.1]} 3... Bf5 {[%clk 0:02:57.1]} 4.
Nc3 {[%clk 0:02:53.6]} 4... e6 {[%clk 0:02:54.5]} 5. g4 {[%clk 0:02:53]} 5...
Bg6 {[%clk 0:02:54.1]} 6. Nge2 {[%clk 0:02:53.1]} 6... f6 {[%clk 0:02:49.7]} 7.
h4 {[%clk 0:02:48.6]} 7... fxe5 {[%clk 0:02:48.5]} 8. h5 {[%clk 0:02:47.1]} 8...
Bf7 {[%clk 0:02:48.8]} 9. dxe5 {[%clk 0:02:46.9]} 9... Nd7 {[%clk 0:02:49.4]}
10. f4 {[%clk 0:02:46.5]} 10... Bc5 {[%clk 0:02:46.8]} 11. Qd3 {[%clk
0:02:44.1]} 11... Ne7 {[%clk 0:02:44.2]} 12. Be3 {[%clk 0:02:42.7]} 12... Bxe3
{[%clk 0:02:43.3]} 13. Qxe3 {[%clk 0:02:42.7]} 13... Qb6 {[%clk 0:02:44]} 14.
Qd2 {[%clk 0:02:34.9]} 14... h6 {[%clk 0:02:40.6]} 15. O-O-O {[%clk 0:02:34.4]}
15... O-O-O {[%clk 0:02:39.6]} 16. Nd4 {[%clk 0:02:28.1]} 16... Kb8 {[%clk
0:01:58.2]} 17. Nf3 {[%clk 0:02:07.5]} 17... c5 {[%clk 0:01:53.9]} 18. Nb5
{[%clk 0:01:45.4]} 18... Nc8 {[%clk 0:01:48.4]} 19. f5 {[%clk 0:01:42.6]} 19...
d4 {[%clk 0:01:40.2]} 20. Qf4 {[%clk 0:01:39.2]} 20... a6 {[%clk 0:01:33.5]} 21.
Na3 {[%clk 0:01:35.9]} 21... Qc7 {[%clk 0:01:24.7]} 22. Nc4 {[%clk 0:01:23.3]}
22... Ndb6 {[%clk 0:01:14.7]} 23. Nxb6 {[%clk 0:00:59.3]} 23... Nxb6 {[%clk
0:01:13.7]} 24. Bg2 {[%clk 0:00:48.6]} 24... Nd5 {[%clk 0:01:08.2]} 25. Qe4
{[%clk 0:00:40.2]} 25... Ne3 {[%clk 0:01:06.4]} 26. Rd2 {[%clk 0:00:36.2]} 26...
exf5 {[%clk 0:00:58]} 27. gxf5 {[%clk 0:00:35.3]} 27... Bd5 {[%clk 0:00:58.7]}
28. Qf4 {[%clk 0:00:33]} 28... Rhe8 {[%clk 0:00:57.2]} 29. Re1 {[%clk
0:00:32.7]} 29... Bxf3 {[%clk 0:00:55.1]} 30. Qxf3 {[%clk 0:00:30.7]} 30... Rxe5
{[%clk 0:00:54.5]} 31. f6 {[%clk 0:00:23]} 31... gxf6 {[%clk 0:00:45.7]} 32.
Qxf6 {[%clk 0:00:20.9]} 32... Ng4 {[%clk 0:00:45.8]} 33. Qf1 {[%clk 0:00:17.5]}
33... Rxe1+ {[%clk 0:00:45.5]} 34. Qxe1 {[%clk 0:00:17.7]} 34... Ne3 {[%clk
0:00:46.4]} 35. Qh4 {[%clk 0:00:15.2]} 35... Rg8 {[%clk 0:00:45]} 36. Bf3 {[%clk
0:00:11.8]} 36... Rg1+ {[%clk 0:00:43.4]} 37. Bd1 {[%clk 0:00:12.5]} 37... Ka7
{[%clk 0:00:41.1]} 38. c3 {[%clk 0:00:11.7]} 38... dxc3 {[%clk 0:00:39.4]} 39.
bxc3 {[%clk 0:00:11.9]} 39... Qa5 {[%clk 0:00:39.3]} 0-1

[Event "*** Titled Tuesday Blitz"]
[Site "Chess.com"]
[Date "2020.05.12"]
[Round "6"]
[White "kleinebeer98"]
[Black "chessablanca"]
[Result "1-0"]
[WhiteElo "2661"]
[BlackElo "2472"]
[TimeControl "180+1"]
[EndTime "11:06:02 PDT"]
[Termination "kleinebeer98 won on time"]

1. e4 {[%clk 0:03:00.9]} 1... e5 {[%clk 0:02:59.6]} 2. Nf3 {[%clk 0:03:00.4]}
2... Nc6 {[%clk 0:03:00.2]} 3. Nc3 {[%clk 0:03:00.6]} 3... Nf6 {[%clk
0:02:59.9]} 4. a3 {[%clk 0:03:01.1]} 4... Be7 {[%clk 0:02:55.5]} 5. d4 {[%clk
0:02:58.7]} 5... d6 {[%clk 0:02:40.3]} 6. Bb5 {[%clk 0:02:53.9]} 6... exd4
{[%clk 0:02:37.4]} 7. Nxd4 {[%clk 0:02:54.8]} 7... Bd7 {[%clk 0:02:37.6]} 8.
Nxc6 {[%clk 0:02:53.6]} 8... Bxc6 {[%clk 0:02:34.8]} 9. Bxc6+ {[%clk 0:02:53.5]}
9... bxc6 {[%clk 0:02:35.7]} 10. O-O {[%clk 0:02:52.5]} 10... O-O {[%clk
0:02:36]} 11. b3 {[%clk 0:02:47]} 11... d5 {[%clk 0:02:26.4]} 12. exd5 {[%clk
0:02:42.3]} 12... cxd5 {[%clk 0:02:27.3]} 13. Bb2 {[%clk 0:02:42]} 13... c6
{[%clk 0:02:13.8]} 14. Qf3 {[%clk 0:02:34.6]} 14... Bd6 {[%clk 0:02:06]} 15.
Rad1 {[%clk 0:02:29.4]} 15... Qc7 {[%clk 0:02:02.9]} 16. h3 {[%clk 0:02:24.1]}
16... Rfe8 {[%clk 0:02:02.9]} 17. Rfe1 {[%clk 0:02:14]} 17... Be5 {[%clk
0:01:57.6]} 18. Qf5 {[%clk 0:01:42.2]} 18... Bxc3 {[%clk 0:01:10.8]} 19. Bxc3
{[%clk 0:01:43.1]} 19... Ne4 {[%clk 0:01:11.1]} 20. Bd4 {[%clk 0:01:36.6]} 20...
g6 {[%clk 0:01:09.8]} 21. Qf3 {[%clk 0:01:27.9]} 21... f5 {[%clk 0:01:03.9]} 22.
Ba1 {[%clk 0:01:23.7]} 22... Rad8 {[%clk 0:00:49.5]} 23. Qd3 {[%clk 0:01:21.5]}
23... c5 {[%clk 0:00:38.1]} 24. f3 {[%clk 0:01:18.5]} 24... Ng5 {[%clk
0:00:25.6]} 25. Rxe8+ {[%clk 0:01:17.4]} 25... Rxe8 {[%clk 0:00:25.5]} 26. Qxd5+
{[%clk 0:01:17.8]} 26... Nf7 {[%clk 0:00:21.3]} 27. Qc4 {[%clk 0:01:13.2]} 27...
Kf8 {[%clk 0:00:17.9]} 28. Qc3 {[%clk 0:01:08.6]} 28... Re6 {[%clk 0:00:07.3]}
29. Qg7+ {[%clk 0:01:01]} 29... Ke7 {[%clk 0:00:07.4]} 30. Qxh7 {[%clk
0:00:59.2]} 30... Qf4 {[%clk 0:00:07.1]} 31. Qg7 {[%clk 0:00:42.5]} 31... Qe3+
{[%clk 0:00:06.3]} 32. Kh1 {[%clk 0:00:42.8]} 32... Qe2 {[%clk 0:00:06.7]} 33.
Rg1 {[%clk 0:00:33.8]} 33... Qxc2 {[%clk 0:00:06]} 34. b4 {[%clk 0:00:33.9]}
34... cxb4 {[%clk 0:00:05.5]} 35. axb4 {[%clk 0:00:34.8]} 35... Qb3 {[%clk
0:00:05.4]} 36. Bd4 {[%clk 0:00:31]} 36... Qxb4 {[%clk 0:00:03.9]} 37. Bxa7
{[%clk 0:00:31.3]} 37... Qh4 {[%clk 0:00:03.1]} 38. Bc5+ {[%clk 0:00:30.6]} 1-0

[Event "*** Titled Tuesday Blitz"]
[Site "Chess.com"]
[Date "2020.05.12"]
[Round "6"]
[White "Chuchofrio1"]
[Black "ShieldingOff"]
[Result "0-1"]
[WhiteElo "2224"]
[BlackElo "2040"]
[TimeControl "180+1"]
[EndTime "11:06:02 PDT"]
[Termination "ShieldingOff won by resignation"]

1. e4 {[%clk 0:03:00.3]} 1... c5 {[%clk 0:02:53.7]} 2. Nc3 {[%clk 0:02:58.9]}
2... Nc6 {[%clk 0:02:50.8]} 3. Bb5 {[%clk 0:02:58.3]} 3... e6 {[%clk 0:02:50.1]}
4. Bxc6 {[%clk 0:02:57.8]} 4... bxc6 {[%clk 0:02:48.5]} 5. f4 {[%clk 0:02:58.7]}
5... d5 {[%clk 0:02:48]} 6. Nf3 {[%clk 0:02:56.4]} 6... Be7 {[%clk 0:02:46.6]}
7. d3 {[%clk 0:02:56]} 7... Nf6 {[%clk 0:02:45.3]} 8. e5 {[%clk 0:02:53.7]} 8...
Nd7 {[%clk 0:02:44.1]} 9. O-O {[%clk 0:02:54.6]} 9... O-O {[%clk 0:02:41.7]} 10.
Qe1 {[%clk 0:02:53.6]} 10... f6 {[%clk 0:02:40.5]} 11. exf6 {[%clk 0:02:52.5]}
11... Nxf6 {[%clk 0:02:40.4]} 12. Ng5 {[%clk 0:02:48.9]} 12... Qd6 {[%clk
0:02:39.4]} 13. Bd2 {[%clk 0:02:42.7]} 13... h6 {[%clk 0:02:39.3]} 14. Nf3
{[%clk 0:02:41]} 14... Nh5 {[%clk 0:02:35.7]} 15. Ne5 {[%clk 0:02:38.4]} 15...
Nf6 {[%clk 0:02:06.3]} 16. Qg3 {[%clk 0:02:10.7]} 16... Ne8 {[%clk 0:01:58.7]}
17. Ng6 {[%clk 0:01:56.5]} 17... Rf7 {[%clk 0:01:57.2]} 18. Nxe7+ {[%clk
0:01:55.4]} 18... Qxe7 {[%clk 0:01:54.2]} 19. f5 {[%clk 0:01:48.9]} 19... exf5
{[%clk 0:01:47.5]} 20. Bxh6 {[%clk 0:01:43.9]} 20... Nd6 {[%clk 0:01:43.3]} 21.
Rae1 {[%clk 0:01:41.6]} 21... Qf8 {[%clk 0:01:42.3]} 22. Bf4 {[%clk 0:01:37.1]}
22... Ne8 {[%clk 0:01:35.2]} 23. Qg6 {[%clk 0:01:27.3]} 23... Bd7 {[%clk
0:01:31.9]} 24. Rf3 {[%clk 0:01:20.1]} 24... Nf6 {[%clk 0:01:31.6]} 25. Rh3
{[%clk 0:01:16.1]} 25... Re8 {[%clk 0:01:28.4]} 26. Rf1 {[%clk 0:01:05.2]} 26...
Rfe7 {[%clk 0:01:21.4]} 27. Bd6 {[%clk 0:00:59.8]} 27... Qf7 {[%clk 0:01:15]}
28. Qg3 {[%clk 0:00:56.2]} 28... Re3 {[%clk 0:01:12.6]} 29. Qxe3 {[%clk
0:00:50.2]} 29... Rxe3 {[%clk 0:01:11.8]} 30. Rxe3 {[%clk 0:00:51.1]} 30... Be6
{[%clk 0:01:06]} 31. Bxc5 {[%clk 0:00:48.4]} 31... Ng4 {[%clk 0:01:03.5]} 32.
Rg3 {[%clk 0:00:44.2]} 32... Qh5 {[%clk 0:01:01.8]} 33. h3 {[%clk 0:00:40.1]}
33... Nf6 {[%clk 0:00:59.9]} 34. Be7 {[%clk 0:00:39.2]} 34... Kf7 {[%clk
0:00:58.6]} 35. Bxf6 {[%clk 0:00:36.4]} 35... Kxf6 {[%clk 0:00:58.5]} 36. Rgf3
{[%clk 0:00:35.8]} 36... d4 {[%clk 0:00:55]} 37. Ne2 {[%clk 0:00:35]} 37... c5
{[%clk 0:00:54.5]} 38. Nf4 {[%clk 0:00:34]} 38... Qh6 {[%clk 0:00:49.8]} 39. Re1
{[%clk 0:00:28.3]} 39... Bf7 {[%clk 0:00:48]} 40. Kf2 {[%clk 0:00:20.2]} 40...
g5 {[%clk 0:00:44.8]} 41. Ne2 {[%clk 0:00:20.4]} 41... Qh4+ {[%clk 0:00:41.1]}
42. Kg1 {[%clk 0:00:18.9]} 42... Qxe1+ {[%clk 0:00:40.1]} 43. Kh2 {[%clk
0:00:19.2]} 43... Qxe2 {[%clk 0:00:39.2]} 44. Kg3 {[%clk 0:00:19.4]} 44... f4+
{[%clk 0:00:37.1]} 45. Kg4 {[%clk 0:00:19.4]} 45... Qxg2+ {[%clk 0:00:36.4]} 0-1

[Event "*** Titled Tuesday Blitz"]
[Site "Chess.com"]
[Date "2020.05.12"]
[Round "6"]
[White "ZverevLev"]
[Black "rpragchess"]
[Result "0-1"]
[WhiteElo "2117"]
[BlackElo "2868"]
[TimeControl "180+1"]
[EndTime "11:06:03 PDT"]
[Termination "rpragchess won on time"]

1. e4 {[%clk 0:03:00.9]} 1... c5 {[%clk 0:02:59.9]} 2. Nf3 {[%clk 0:02:57.2]}
2... e6 {[%clk 0:03:00.3]} 3. d4 {[%clk 0:02:52.2]} 3... cxd4 {[%clk 0:03:01.2]}
4. Nxd4 {[%clk 0:02:52]} 4... a6 {[%clk 0:03:02.1]} 5. Bd3 {[%clk 0:02:46.9]}
5... Bc5 {[%clk 0:03:02.1]} 6. Nb3 {[%clk 0:02:45.5]} 6... Be7 {[%clk
0:03:02.4]} 7. Qg4 {[%clk 0:02:39.7]} 7... g6 {[%clk 0:03:02.2]} 8. O-O {[%clk
0:02:36.7]} 8... d6 {[%clk 0:03:02]} 9. Qg3 {[%clk 0:02:33]} 9... Nc6 {[%clk
0:02:55.2]} 10. f4 {[%clk 0:02:29.2]} 10... h5 {[%clk 0:02:53.3]} 11. Kh1 {[%clk
0:02:25.8]} 11... Qc7 {[%clk 0:02:23]} 12. Nc3 {[%clk 0:02:20.7]} 12... Bd7
{[%clk 0:02:22.5]} 13. a3 {[%clk 0:02:11.9]} 13... Nf6 {[%clk 0:02:18.2]} 14. h3
{[%clk 0:02:04.6]} 14... h4 {[%clk 0:02:16.5]} 15. Qf2 {[%clk 0:01:52.9]} 15...
Nh5 {[%clk 0:02:09.5]} 16. Ne2 {[%clk 0:01:49]} 16... e5 {[%clk 0:01:55.9]} 17.
Kg1 {[%clk 0:01:12.8]} 17... Be6 {[%clk 0:01:42]} 18. c4 {[%clk 0:01:07.4]}
18... exf4 {[%clk 0:01:18.3]} 19. Nxf4 {[%clk 0:01:04.6]} 19... Nxf4 {[%clk
0:01:17.6]} 20. Bxf4 {[%clk 0:00:58.9]} 20... Ne5 {[%clk 0:01:17.7]} 21. Bxe5
{[%clk 0:00:55.3]} 21... dxe5 {[%clk 0:01:17.5]} 22. Rac1 {[%clk 0:00:47.6]}
22... a5 {[%clk 0:01:11.5]} 23. Kh1 {[%clk 0:00:41.9]} 23... a4 {[%clk
0:01:11.3]} 24. Nd2 {[%clk 0:00:38.3]} 24... O-O-O {[%clk 0:01:11.3]} 25. Qe2
{[%clk 0:00:30.5]} 25... Bg5 {[%clk 0:01:09]} 26. c5 {[%clk 0:00:25.7]} 26...
Rxd3 {[%clk 0:00:52.8]} 27. Qxd3 {[%clk 0:00:20.9]} 27... Rd8 {[%clk 0:00:52.2]}
28. Qf3 {[%clk 0:00:14.3]} 28... Rxd2 {[%clk 0:00:51]} 29. Rfd1 {[%clk
0:00:09.9]} 29... Rxb2 {[%clk 0:00:47.5]} 30. Rc3 {[%clk 0:00:06.9]} 30... Rb3
{[%clk 0:00:46.4]} 31. Rxb3 {[%clk 0:00:05.8]} 31... axb3 {[%clk 0:00:47.3]} 32.
Qc3 {[%clk 0:00:03.2]} 32... Qc6 {[%clk 0:00:45.5]} 33. Qb4 {[%clk 0:00:02.3]}
33... Be7 {[%clk 0:00:43.7]} 34. Qa5 {[%clk 0:00:01.9]} 34... Qa6 {[%clk
0:00:42]} 35. Qb4 {[%clk 0:00:01.1]} 35... Qe2 {[%clk 0:00:41.2]} 0-1

[Event "*** Titled Tuesday Blitz"]
[Site "Chess.com"]
[Date "2020.05.12"]
[Round "6"]
[White "ama18"]
[Black "MusicCityMaster"]
[Result "0-1"]
[WhiteElo "2491"]
[BlackElo "2327"]
[TimeControl "180+1"]
[EndTime "11:06:03 PDT"]
[Termination "MusicCityMaster won on time"]

1. e4 {[%clk 0:02:30.6]} 1... c5 {[%clk 0:02:58.6]} 2. Nf3 {[%clk 0:02:29.9]}
2... d6 {[%clk 0:02:59.1]} 3. d4 {[%clk 0:02:26.6]} 3... cxd4 {[%clk 0:03:00]}
4. Nxd4 {[%clk 0:02:27.2]} 4... Nf6 {[%clk 0:03:00.7]} 5. Nc3 {[%clk 0:02:26.9]}
5... a6 {[%clk 0:03:01.4]} 6. h3 {[%clk 0:02:26.6]} 6... e6 {[%clk 0:02:59]} 7.
g4 {[%clk 0:02:25.9]} 7... d5 {[%clk 0:02:59.6]} 8. Bg2 {[%clk 0:01:50.9]} 8...
Bb4 {[%clk 0:02:47.1]} 9. O-O {[%clk 0:01:34.2]} 9... Bxc3 {[%clk 0:02:41.6]}
10. bxc3 {[%clk 0:01:34.7]} 10... Nxe4 {[%clk 0:02:41.6]} 11. c4 {[%clk
0:01:31.7]} 11... O-O {[%clk 0:02:39.3]} 12. cxd5 {[%clk 0:01:29.9]} 12... exd5
{[%clk 0:02:39.1]} 13. c4 {[%clk 0:01:26.6]} 13... Re8 {[%clk 0:02:10.8]} 14.
cxd5 {[%clk 0:01:24.4]} 14... Qxd5 {[%clk 0:01:31.3]} 15. Re1 {[%clk 0:01:22.8]}
15... Nc6 {[%clk 0:01:30.8]} 16. Nxc6 {[%clk 0:01:21.3]} 16... bxc6 {[%clk
0:00:39.8]} 17. Bf4 {[%clk 0:00:11.4]} 17... Bb7 {[%clk 0:00:31.7]} 18. Qc2
{[%clk 0:00:09.8]} 18... f5 {[%clk 0:00:18.3]} 19. Rad1 {[%clk 0:00:09.1]} 19...
Qf7 {[%clk 0:00:18]} 20. gxf5 {[%clk 0:00:08.1]} 20... Qxf5 {[%clk 0:00:17.8]}
21. Be3 {[%clk 0:00:05.3]} 21... c5 {[%clk 0:00:18.1]} 22. Qc4+ {[%clk
0:00:04.8]} 22... Kh8 {[%clk 0:00:17.7]} 23. Re2 {[%clk 0:00:02.4]} 23... Rac8
{[%clk 0:00:17]} 24. Rde1 {[%clk 0:00:01.9]} 24... Nd6 {[%clk 0:00:16.4]} 25.
Qg4 {[%clk 0:00:01.5]} 25... Bxg2 {[%clk 0:00:15.5]} 26. Kxg2 {[%clk 0:00:01.7]}
26... Qd5+ {[%clk 0:00:14.3]} 27. Qf3 {[%clk 0:00:01.4]} 27... Ne4 {[%clk
0:00:13.9]} 28. Bf4 {[%clk 0:00:01.4]} 28... Qf7 {[%clk 0:00:11.6]} 0-1

[Event "*** Titled Tuesday Blitz"]
[Site "Chess.com"]
[Date "2020.05.12"]
[Round "6"]
[White "Zakaryan_David"]
[Black "SergeiAza"]
[Result "1-0"]
[WhiteElo "2517"]
[BlackElo "2733"]
[TimeControl "180+1"]
[EndTime "11:06:05 PDT"]
[Termination "Zakaryan_David won on time"]

1. e4 {[%clk 0:03:00.9]} 1... c5 {[%clk 0:03:00.1]} 2. Nc3 {[%clk 0:02:59.9]}
2... Nc6 {[%clk 0:02:59.5]} 3. Nge2 {[%clk 0:02:57.6]} 3... Nf6 {[%clk
0:02:55.4]} 4. d4 {[%clk 0:02:57.2]} 4... cxd4 {[%clk 0:02:45.9]} 5. Nxd4 {[%clk
0:02:58.1]} 5... e6 {[%clk 0:02:46.1]} 6. Nxc6 {[%clk 0:02:55.1]} 6... bxc6
{[%clk 0:02:45.5]} 7. e5 {[%clk 0:02:55]} 7... Nd5 {[%clk 0:02:43.1]} 8. Ne4
{[%clk 0:02:54.8]} 8... Qc7 {[%clk 0:02:40.3]} 9. f4 {[%clk 0:02:53.8]} 9... Bb7
{[%clk 0:02:39]} 10. c4 {[%clk 0:02:33.1]} 10... Bb4+ {[%clk 0:02:01.9]} 11. Kf2
{[%clk 0:02:30.3]} 11... Qb6+ {[%clk 0:01:44.7]} 12. Kf3 {[%clk 0:02:27.7]}
12... f5 {[%clk 0:01:45.1]} 13. Ng3 {[%clk 0:00:57.7]} 13... Ne7 {[%clk
0:01:26.3]} 14. Be3 {[%clk 0:00:56.4]} 14... c5+ {[%clk 0:01:17.3]} 15. Kf2
{[%clk 0:00:54.5]} 15... Qc7 {[%clk 0:01:16.9]} 16. Be2 {[%clk 0:00:48.5]} 16...
O-O-O {[%clk 0:01:12.1]} 17. a3 {[%clk 0:00:42.3]} 17... Ba5 {[%clk 0:01:11.5]}
18. b4 {[%clk 0:00:40.5]} 18... Bb6 {[%clk 0:01:11.6]} 19. Qb3 {[%clk 0:00:33]}
19... d6 {[%clk 0:01:08.7]} 20. exd6 {[%clk 0:00:31.1]} 20... Rxd6 {[%clk
0:01:08.5]} 21. Rab1 {[%clk 0:00:30.5]} 21... Rhd8 {[%clk 0:00:56.5]} 22. Rhc1
{[%clk 0:00:29.9]} 22... Ng6 {[%clk 0:00:50.3]} 23. bxc5 {[%clk 0:00:22]} 23...
Bxc5 {[%clk 0:00:49]} 24. Bxc5 {[%clk 0:00:19.6]} 24... Qxc5+ {[%clk 0:00:48.7]}
25. Qe3 {[%clk 0:00:18.7]} 25... Qxe3+ {[%clk 0:00:37.4]} 26. Kxe3 {[%clk
0:00:19.6]} 26... Bxg2 {[%clk 0:00:21.2]} 27. c5 {[%clk 0:00:19.3]} 27... Rd4
{[%clk 0:00:19.1]} 28. c6 {[%clk 0:00:16.4]} 28... Ra4 {[%clk 0:00:02.1]} 29. c7
{[%clk 0:00:13.2]} 1-0

[Event "*** Titled Tuesday Blitz"]
[Site "Chess.com"]
[Date "2020.05.12"]
[Round "6"]
[White "harvsp123"]
[Black "JonahWillow"]
[Result "1-0"]
[WhiteElo "2541"]
[BlackElo "2681"]
[TimeControl "180+1"]
[EndTime "11:06:08 PDT"]
[Termination "harvsp123 won by resignation"]

1. d4 {[%clk 0:02:59.9]} 1... Nf6 {[%clk 0:02:59.9]} 2. c4 {[%clk 0:02:58.7]}
2... c5 {[%clk 0:03:00]} 3. d5 {[%clk 0:02:58.6]} 3... d6 {[%clk 0:02:59.3]} 4.
Nc3 {[%clk 0:02:58.1]} 4... e6 {[%clk 0:02:59.8]} 5. g3 {[%clk 0:02:49.3]} 5...
exd5 {[%clk 0:02:59.5]} 6. cxd5 {[%clk 0:02:50.2]} 6... g6 {[%clk 0:03:00.1]} 7.
Bg2 {[%clk 0:02:50.5]} 7... Bg7 {[%clk 0:03:01]} 8. Nf3 {[%clk 0:02:50.9]} 8...
O-O {[%clk 0:03:01.8]} 9. O-O {[%clk 0:02:51.4]} 9... a6 {[%clk 0:03:02.7]} 10.
a4 {[%clk 0:02:50.9]} 10... Nbd7 {[%clk 0:03:00.6]} 11. Bf4 {[%clk 0:02:32.5]}
11... Qc7 {[%clk 0:02:59.2]} 12. Qd2 {[%clk 0:02:27.4]} 12... Re8 {[%clk
0:02:54.3]} 13. Bh6 {[%clk 0:02:20]} 13... Bh8 {[%clk 0:02:48.2]} 14. Rfe1
{[%clk 0:02:07.4]} 14... Rb8 {[%clk 0:02:46.7]} 15. Qf4 {[%clk 0:01:47.9]} 15...
b5 {[%clk 0:02:38.9]} 16. axb5 {[%clk 0:01:48.8]} 16... axb5 {[%clk 0:02:39.6]}
17. e4 {[%clk 0:01:32]} 17... Ne5 {[%clk 0:02:20.2]} 18. Nxe5 {[%clk 0:01:26]}
18... Rxe5 {[%clk 0:02:20.4]} 19. Bf1 {[%clk 0:01:22.8]} 19... b4 {[%clk
0:02:10.5]} 20. Nb5 {[%clk 0:01:21.5]} 20... Qe7 {[%clk 0:02:00.2]} 21. Ra7
{[%clk 0:01:17.4]} 21... Bd7 {[%clk 0:01:52.9]} 22. Bg5 {[%clk 0:01:13.2]} 22...
h6 {[%clk 0:01:43.6]} 23. Bxf6 {[%clk 0:01:08.1]} 23... Bxf6 {[%clk 0:01:42.6]}
24. Rxd7 {[%clk 0:01:07.4]} 24... Qxd7 {[%clk 0:01:39.9]} 25. Qxf6 {[%clk
0:01:07.5]} 25... Rxb5 {[%clk 0:01:30.3]} 26. Bxb5 {[%clk 0:01:08.4]} 26... Qxb5
{[%clk 0:01:31.2]} 27. Qxd6 {[%clk 0:01:08.1]} 27... Re8 {[%clk 0:01:31.2]} 28.
e5 {[%clk 0:01:05.6]} 28... c4 {[%clk 0:01:13.7]} 29. e6 {[%clk 0:01:03.6]}
29... c3 {[%clk 0:01:13.8]} 30. bxc3 {[%clk 0:01:01.3]} 30... bxc3 {[%clk
0:01:12.1]} 31. Qc7 {[%clk 0:00:39.3]} 31... fxe6 {[%clk 0:00:59.6]} 32. dxe6
{[%clk 0:00:33.3]} 32... Qf5 {[%clk 0:00:40.4]} 33. Qd7 {[%clk 0:00:26.3]} 33...
Rf8 {[%clk 0:00:33.8]} 34. Re2 {[%clk 0:00:21.4]} 34... c2 {[%clk 0:00:28.8]}
35. Qc6 {[%clk 0:00:19.6]} 35... Rf6 {[%clk 0:00:23.4]} 36. Qc8+ {[%clk
0:00:19.6]} 36... Kg7 {[%clk 0:00:19.8]} 37. Qc7+ {[%clk 0:00:19.5]} 37... Kg8
{[%clk 0:00:19.2]} 38. e7 {[%clk 0:00:19.2]} 38... Re6 {[%clk 0:00:15.8]} 39.
e8=Q+ {[%clk 0:00:18.9]} 39... Rxe8 {[%clk 0:00:16]} 40. Rxe8+ {[%clk
0:00:18.9]} 1-0